fUST/lending_fUST_20250730
["ID","MTS","AMOUNT","RATE_DAILY","PERIOD"]
[376085147,1753857048399,-2181.22,0.0001978,2]
[376085149,1753857048408,-460.0,0.0001978,2]
[376085151,1753857048419,-1201.87,0.0001978,2]
[376085153,1753857048428,-1548.14202961,0.000199,2]
[376085155,1753857048438,-460.0,0.0001995,2]
[376085157,1753857048447,-460.0,0.0001995,2]
[376085159,1753857048456,-460.0,0.0001995,2]
[376085161,1753857048465,-1270.42,0.0001995,2]
[376085163,1753857048475,-460.0,0.00019951,2]
[376085165,1753857048484,-460.0,0.00019951,2]
[376085167,1753857048494,-460.0,0.00019951,2]
[376085170,1753857048504,-460.0,0.00019951,2]
[376085171,1753857048513,-3272.8,0.00019951,2]
[376085173,1753857048523,-460.0,0.00019951,2]
[376085175,1753857048532,-599.95,0.00019951,2]
[376085177,1753857048542,-460.0,0.00019951,2]
[376085179,1753857048551,-460.0,0.00019951,2]
[376085181,1753857048560,-650.29,0.00019951,2]
[376085184,1753857048570,-460.0,0.00019951,2]
[376085186,1753857048580,-460.0,0.00019951,2]
[376085188,1753857048589,-2484.25,0.00019951,2]
[376085189,1753857048599,-460.0,0.00019951,2]
[376085191,1753857048608,-460.0,0.00019951,2]
[376085193,1753857048619,-460.0,0.00019951,2]
[376085195,1753857048628,-460.0,0.00019951,2]
[376085198,1753857048638,-460.0,0.00019951,2]
[376085200,1753857048647,-460.0,0.00019951,2]
[376085202,1753857048657,-1742.93,0.00019951,2]
[376085203,1753857048667,-460.0,0.00019951,2]
[376085205,1753857048676,-1935.42,0.00019951,2]
[376085207,1753857048686,-490.47,0.00019951,2]
[376085209,1753857048695,-460.0,0.00019951,2]
[376085211,1753857048705,-460.0,0.00019951,2]
[376085213,1753857048715,-460.0,0.00019951,2]
[376085215,1753857048724,-460.0,0.00019951,2]
[376085217,1753857048734,-969.02,0.00019951,2]
[376085220,1753857048743,-460.0,0.00019951,2]
[376085222,1753857048753,-460.0,0.00019951,2]
[376085223,1753857048762,-460.0,0.00019951,2]
[376085226,1753857048774,-460.0,0.00019951,2]
[376085227,1753857048784,-460.0,0.00019951,2]
[376085229,1753857048793,-460.0,0.00019951,2]
[376085231,1753857048802,-611.96,0.00019951,2]
[376085233,1753857048811,-469.79,0.00019952,2]
[376085236,1753857048820,-460.0,0.00019952,2]
[376085237,1753857048830,-460.0,0.00019952,2]
[376085239,1753857048839,-460.0,0.00019952,2]
[376085241,1753857048848,-460.0,0.00019952,2]
[376085244,1753857048857,-1202.66,0.00019952,2]
[376085245,1753857048868,-460.0,0.00019952,2]
[376085248,1753857048877,-460.0,0.00019952,2]
[376085250,1753857048887,-460.0,0.00019952,2]
[376085252,1753857048896,-499.49,0.00019952,2]
[376085254,1753857048905,-460.0,0.00019952,2]
[376085256,1753857048916,-474.16,0.00019952,2]
[376085257,1753857048926,-716.27,0.00019952,2]
[376085259,1753857048935,-615.49,0.00019952,2]
[376085261,1753857048945,-453.69019085,0.00019952,2]
[376085263,1753857048954,-460.0,0.00019952,2]
[376085265,1753857048964,-460.0,0.00019953,2]
[376085267,1753857048973,-460.0,0.00019953,2]
[376085268,1753857048982,-460.0,0.00019953,2]
[376085270,1753857048991,-242.79340991,0.00019953,2]
[376085272,1753857049001,-460.0,0.00019953,2]
[376085274,1753857049010,-460.0,0.00019953,2]
[376085276,1753857049019,-1470.25,0.00019953,2]
[376085278,1753857049028,-460.0,0.00019954,2]
[376085279,1753857049038,-460.0,0.00019954,2]
[376085281,1753857049047,-5546.43,0.00019954,2]
[376085283,1753857049056,-5315.33,0.00019954,2]
[376085285,1753857049066,-1187.0,0.00019954,2]
[376085286,1753857049075,-1137.54,0.00019954,2]
[376085288,1753857049084,-857.37098168,0.00019954,2]
[376085290,1753857049099,-410.87901832,0.00019954,2]
[376085292,1753857049108,-1192.56,0.00019955,2]
[376085294,1753857049117,-256.45812933,0.00019955,2]
[376085296,1753857049127,-500.0,0.0001998,2]
[376085298,1753857049136,-713.7514932,0.00019995,2]
[376085300,1753857049146,-312.16666667,0.0002002,2]
[376085302,1753857049157,-5838.13775281,0.0002002,2]
[376085326,1753857077219,153.882257,0.00023,30]
[376085327,1753857093148,29370.757465,0.00018756,2]
[376085329,1753857262163,10366.62500004,0.00018755,2]
[376085330,1753857277896,202.252944,0.00013699,2]
[376085334,1753857492474,9070.79687507,0.00018754,2]
[376085340,1753857715052,161.9,0.0002602,120]
[376085341,1753857717820,7936.94726566,0.00018754,2]
[376085348,1753857943334,6944.82885747,0.00018754,2]
[376085354,1753857961900,10000.0,0.00017953,2]
[376085369,1753858000578,800.0,0.00017795,2]
[376085372,1753858000910,800.0,0.00017389,2]
[376085377,1753858084543,-1200.0,0.00023014,30]
[376085378,1753858084571,-1200.0,0.00023014,30]
[376085379,1753858084596,-1200.0,0.00023014,30]
[376085380,1753858084621,-268.0,0.00023014,30]
[376085381,1753858084659,-788.27697543,0.00023909,30]
[376085382,1753858084685,-245.40621939,0.00024,60]
[376085383,1753858084711,-281.6545734,0.00024027,30]
[376085384,1753858084739,-200.0,0.0002415,30]
[376085385,1753858084765,-200.0,0.0002415,30]
[376085386,1753858084795,-150.0,0.00024364,30]
[376085387,1753858084820,-154.0,0.000244,30]
[376085388,1753858084854,-155.0,0.00025,60]
[376085389,1753858084885,-155.0,0.000255,90]
[376085390,1753858084914,-150.0,0.00025524,30]
[376085391,1753858084942,-155.0,0.000258,90]
[376085392,1753858084972,-155.0,0.00026,90]
[376085393,1753858084998,-160.0,0.00026,30]
[376085394,1753858085023,-160.0,0.00026,30]
[376085395,1753858085049,-86999.99999993,0.00026,30]
[376085396,1753858085075,-841.2246943,0.00026,30]
[376085397,1753858085099,-160.0,0.00026,30]
[376085398,1753858085124,-312.16666667,0.00026,30]
[376085399,1753858085150,-526.76118213,0.00026,30]
[376085400,1753858085182,-1763.37976406,0.00026118,120]
[376085401,1753858085208,-593.34926123,0.00026141,120]
[376085402,1753858085234,-158.0,0.000262,120]
[376085403,1753858085260,-153.5,0.000262,120]
[376085404,1753858085290,-212.68,0.00026685,30]
[376085405,1753858085315,-436.18901632,0.00027,50]
[376085406,1753858085340,-221.02777225,0.00027,60]
[376085407,1753858085366,-840.0,0.00027,120]
[376085408,1753858085391,-231.39372452,0.00027,30]
[376085409,1753858085418,-160.0,0.00027,30]
[376085410,1753858085444,-160.0,0.00027,30]
[376085411,1753858085469,-160.0,0.00027,30]
[376085412,1753858085496,-312.16666667,0.00027,30]
[376085413,1753858085521,-526.76118213,0.00027,30]
[376085414,1753858085548,-158.0,0.000273,120]
[376085415,1753858085573,-200.0,0.00027309,30]
[376085416,1753858085598,-200.0,0.00027309,30]
[376085417,1753858085623,-158.4673405,0.0002739,120]
[376085418,1753858085650,-329.360363,0.00027397,120]
[376085419,1753858085678,-250.0,0.00027397,30]
[376085420,1753858085703,-5266.81890627,0.00027405,120]
[376085421,1753858085732,-283.57,0.00027845,30]
[376085422,1753858085761,-200.0,0.00027851,120]
[376085423,1753858085786,-2190.56892015,0.00028,120]
[376085424,1753858085812,-800.0,0.00028,120]
[376085425,1753858085840,-860.2785724,0.00028395,30]
[376085426,1753858085866,-158.0,0.000284,120]
[376085427,1753858085892,-200.0,0.00028716,120]
[376085428,1753858085917,-320.2672584,0.00028806,30]
[376085429,1753858085943,-578.2915207,0.00028806,30]
[376085430,1753858085970,-356.940285,0.00028806,30]
[376085431,1753858085995,-153.0,0.00028806,30]
[376085432,1753858086022,-160.1336292,0.00028806,30]
[376085433,1753858086048,-578.2915207,0.00028806,30]
[376085434,1753858086075,-153.0,0.00028806,30]
[376085435,1753858086102,-178.4701425,0.00028806,30]
[376085436,1753858086129,-153.0,0.00028806,30]
[376085437,1753858086159,-578.2915207,0.00028806,30]
[376085438,1753858086185,-580.4284818,0.00028806,30]
[376085439,1753858086214,-815.21959191,0.00029041,120]
[376085440,1753858086243,-354.46,0.00029106,30]
[376085441,1753858086476,-261.07294,0.000294,120]
[376085442,1753858086503,-200.0,0.000294,120]
[376085443,1753858086528,-201.15625,0.000294,120]
[376085444,1753858086555,-158.0,0.000295,120]
[376085445,1753858086582,-200.0,0.00029505,120]
[376085446,1753858086606,-200.0,0.00029505,120]
[376085447,1753858086633,-1174.82827,0.0003,120]
[376085448,1753858086659,-330.10917422,0.0003,120]
[376085449,1753858086684,-2063.44680209,0.0003,30]
[376085450,1753858086710,-800.0,0.0003,120]
[376085451,1753858086739,-200.0,0.0003,120]
[376085452,1753858086868,-160.06,0.0003,30]
[376085453,1753858086894,-3600.0,0.0003,120]
[376085454,1753858086920,-312.16666667,0.0003,120]
[376085455,1753858086946,-200.0,0.00030188,120]
[376085456,1753858086972,-200.0,0.00030188,120]
[376085457,1753858086997,-327.36090321,0.00030188,120]
[376085458,1753858087027,-425.35,0.00030271,30]
[376085459,1753858087052,-154.6429418,0.00030388,30]
[376085460,1753858087079,-158.0,0.000306,120]
[376085461,1753858087105,-2014.3437642,0.00031,120]
[376085462,1753858087133,-231.39372452,0.00031,120]
[376085463,1753858087158,-160.0,0.00031,120]
[376085464,1753858087183,-160.0,0.00031,120]
[376085465,1753858087208,-160.0,0.00031,120]
[376085466,1753858087235,-160.0,0.00031,120]
[376085467,1753858087263,-526.76118213,0.00031,120]
[376085468,1753858087287,-200.0,0.00031069,120]
[376085469,1753858087314,-261.07294,0.000311,120]
[376085470,1753858087341,-496.24,0.00031435,30]
[376085471,1753858087367,-1174.82827,0.000315,120]
[376085472,1753858087392,-158.0,0.000317,120]
[376085473,1753858087417,-329.360363,0.00031963,120]
[376085474,1753858087443,-800.0,0.00032,120]
[376085475,1753858087470,-200.0,0.00032459,120]
[376085476,1753858087501,-567.14,0.00032599,30]
[376085477,1753858087527,-158.0,0.000328,120]
[376085478,1753858087551,-261.07294,0.000328,120]
[376085479,1753858087578,-999.0,0.00032876,120]
[376085480,1753858087602,-1174.82827,0.00033,120]
[376085481,1753858087626,-1000.0,0.00033,120]
[376085482,1753858087651,-500.0,0.00033,120]
[376085483,1753858087676,-999.0,0.00033205,120]
[376085484,1753858087708,-999.0,0.00033534,120]
[376085485,1753858087742,-638.03,0.00033763,30]
[376085486,1753858087770,-999.0,0.00033863,120]
[376085487,1753858087796,-158.0,0.000339,120]
[376085488,1753858087823,-800.0,0.00034,120]
[376085489,1753858087848,-999.0,0.00034191,120]
[376085490,1753858087872,-438.10441,0.000342,120]
[376085491,1753858087897,-1174.82827,0.000345,120]
[376085492,1753858087922,-261.07294,0.000345,120]
[376085493,1753858087948,-999.0,0.0003452,120]
[376085494,1753858087974,-999.0,0.00034849,120]
[376085495,1753858088001,-158.0,0.00035,120]
[376085496,1753858088026,-2564.38619594,0.00035,120]
[376085497,1753858088052,-210.84738297,0.00035,30]
[376085498,1753858088078,-500.0,0.00035,120]
[376085499,1753858088104,-750.0,0.00035,30]
[376085500,1753858088131,-200.0,0.00035,120]
[376085501,1753858088156,-516.0,0.00035,120]
[376085502,1753858088184,-999.0,0.00035178,120]
[376085503,1753858088209,-200.0,0.00035406,120]
[376085504,1753858088235,-200.0,0.00035406,120]
[376085505,1753858088261,-200.0,0.00035406,120]
[376085506,1753858088286,-999.0,0.00035506,120]
[376085507,1753858088314,-200.0,0.00035594,120]
[376085508,1753858088339,-500.0,0.00035616,120]
[376085509,1753858088364,-999.0,0.00035835,120]
[376085510,1753858088389,-1174.82827,0.00036,120]
[376085511,1753858088415,-800.0,0.00036,120]
[376085513,1753858088441,-158.0,0.000361,120]
[376085514,1753858088467,-999.0,0.00036164,120]
[376085515,1753858088495,-261.07294,0.000362,120]
[376085516,1753858088522,-238.10441,0.000362,120]
[376085517,1753858088549,-200.0,0.00036225,120]
[376085518,1753858088575,-200.0,0.00036225,120]
[376085519,1753858088599,-200.0,0.00036225,120]
[376085520,1753858088625,-999.0,0.00036493,120]
[376085521,1753858088649,-377.78156335,0.000365,120]
[376085522,1753858088676,-329.360363,0.0003653,120]
[376085523,1753858088703,-999.0,0.00036821,120]
[376085524,1753858088729,-3812.45251006,0.00036896,60]
[376085525,1753858088754,-5163.63,0.00036999,90]
[376085526,1753858088779,-10000.0,0.00037,30]
[376085527,1753858088804,-999.0,0.0003715,120]
[376085528,1753858088831,-158.0,0.000372,120]
[376085529,1753858088858,-999.0,0.00037479,120]
[376085530,1753858088883,-150.0,0.000375,112]
[376085531,1753858088908,-1174.82827,0.000375,120]
[376085532,1753858088936,-999.0,0.00037808,120]
[376085533,1753858088962,-261.07294,0.000379,120]
[376085534,1753858088987,-200.0,0.000379,120]
[376085535,1753858089018,-17939.70502801,0.00038,120]
[376085536,1753858089045,-800.0,0.00038,120]
[376085537,1753858089073,-2004.48249578,0.00038,30]
[376085538,1753858089098,-500.0,0.00038082,120]
[376085539,1753858089124,-2770.26,0.00038119,30]
[376085540,1753858089150,-999.0,0.00038136,120]
[376085541,1753858089179,-158.0,0.000383,120]
[376085542,1753858089205,-999.0,0.00038465,120]
[376085543,1753858089233,-999.0,0.00038794,120]
[376085544,1753858089262,-1957.856,0.00038999,30]
[376085545,1753858089287,-1174.8283,0.00039,120]
[376085546,1753858089312,-500.0,0.0003909,30]
[376085547,1753858089338,-999.0,0.00039123,120]
[376085548,1753858089501,-400.73,0.0003918,30]
[376085549,1753858089530,-158.0,0.000394,120]
[376085550,1753858089557,-438.10441,0.000394,120]
[376085551,1753858089585,-444.63834498,0.00039452,120]
[376085552,1753858089611,-7201.63116493,0.000396,120]
[376085553,1753858089637,-261.07294,0.000396,120]
[376085554,1753858089663,-80000.0,0.00039787,60]
[376085555,1753858089689,-5000.0,0.0003999,120]
[376085556,1753858089715,-5000.0,0.0003999,120]
[376085557,1753858089743,-5000.0,0.0003999,120]
[376085558,1753858089768,-5000.0,0.0003999,90]
[376085559,1753858089793,-2744.7431181,0.0003999,120]
[376085560,1753858089818,-15000.0,0.0004,120]
[376085561,1753858089843,-2806.13641592,0.0004,120]
[376085562,1753858089866,-1106.62716208,0.0004,30]
[376085563,1753858089890,-236.05261835,0.0004,120]
[376085564,1753858089914,-100138.42126435,0.0004,30]
[376085565,1753858089939,-526.73548119,0.0004,30]
[376085566,1753858089964,-546243.54363749,0.0004,30]
[376085567,1753858095583,-1000000.0,0.0004,30]
[376085568,1753858099194,440.57843255,0.00026009,120]
[376085569,1753858102545,-4000000.0,0.0004,30]
[376085571,1753858106949,-3072572.45696863,0.0004,30]
[376085572,1753858106976,-629.19642197,0.0004,120]
[376085573,1753858107003,-163.90419953,0.0004,120]
[376085574,1753858107030,-894.07164432,0.0004,120]
[376085575,1753858107055,-516.87068452,0.0004,120]
[376085576,1753858107081,-800.0,0.0004,120]
[376085577,1753858107106,-6586.0,0.0004,120]
[376085578,1753858107131,-100000.0,0.0004,30]
[376085579,1753858107157,-1727.7953588,0.0004,30]
[376085580,1753858107183,-70000.0,0.0004,30]
[376085581,1753858107208,-500.0,0.0004,120]
[376085582,1753858107232,-15576.82988303,0.0004,120]
[376085583,1753858107257,-157.89555684,0.0004,120]
[376085584,1753858107283,-160.0,0.0004,120]
[376085585,1753858107307,-160.0,0.0004,120]
[376085586,1753858107331,-9657.67530576,0.0004,120]
[376085587,1753858107355,-160.0,0.0004,120]
[376085588,1753858107379,-312.16666667,0.0004,120]
[376085589,1753858107404,-526.76118213,0.0004,120]
[376085590,1753858107429,-40000.0,0.0004,100]
[376085591,1753858107452,-155.0,0.0004,120]
[376085592,1753858107477,-27999.99,0.000402,120]
[376085593,1753858107503,-158.0,0.000405,120]
[376085594,1753858107529,-500.0,0.00040547,120]
[376085595,1753858107553,-201.92073682,0.0004081,120]
[376085596,1753858107578,-20023.91806,0.000409,120]
[376085597,1753858107603,-3770.5321184,0.00041,60]
[376085598,1753858107628,-70090.06045624,0.00041,30]
[376085599,1753858107654,-699.9,0.00041041,120]
[376085600,1753858107680,-699.9,0.00041059,120]
[376085601,1753858107704,-699.9,0.00041078,120]
[376085602,1753858107731,-151.0,0.00041095,30]
[376085603,1753858107760,-1888.0,0.00041095,30]
[376085604,1753858107785,-782.47,0.00041096,120]
[376085605,1753858107810,-329.360363,0.00041096,120]
[376085606,1753858107835,-699.9,0.00041096,120]
[376085607,1753858107860,-261.07294,0.000413,120]
[376085608,1753858107885,-158.0,0.000416,120]
[376085609,1753858107909,-2926.11103225,0.000419,120]
[376085610,1753858107935,-151.0,0.00041999,60]
[376085611,1753858107959,-229.09572766,0.00042,120]
[376085612,1753858107985,-800.0,0.00042,120]
[376085613,1753858108008,-1759.83300826,0.000424,120]
[376085614,1753858108035,-200.0,0.00042628,120]
[376085615,1753858108061,-158.0,0.000428,120]
[376085616,1753858108087,-200.0,0.00042934,120]
[376085617,1753858108112,-506.78,0.00043,120]
[376085618,1753858108139,-10000.0,0.00043,120]
[376085619,1753858108163,-261.07302,0.00043,120]
[376085620,1753858108187,-500.0,0.00043013,120]
[376085621,1753858108212,-151.0,0.00043321,120]
[376085622,1753858108237,-151.0,0.00043321,120]
[376085623,1753858108262,-151.0,0.00043383,67]
[376085624,1753858108288,-151.0,0.00043383,67]
[376085625,1753858108312,-783.20519876,0.00043454,120]
[376085626,1753858108336,-783.20519876,0.00043457,120]
[376085627,1753858108359,-783.20519876,0.00043495,120]
[376085628,1753858108384,-638.097,0.00043495,67]
[376085629,1753858108409,-783.20519876,0.00043655,120]
[376085630,1753858108434,-151.0,0.00043799,90]
[376085631,1753858108461,-151.0,0.00043799,90]
[376085632,1753858108487,-500.0,0.00043799,90]
[376085633,1753858108518,-151.0,0.00043799,90]
[376085634,1753858108542,-182.0,0.000438,90]
[376085635,1753858108567,-1000.0,0.000438,90]
[376085636,1753858108591,-1000.0,0.000438,90]
[376085644,1753858173625,6076.72525026,0.00018753,2]
[376085646,1753858203153,321.77983633,0.00026012,120]
[376085647,1753858203189,1143.53272627,0.00026012,120]
[376085648,1753858230392,440.57843255,0.00026012,120]
[376085710,1753858232388,-300.0,0.00018851,2]
[376085712,1753858232398,-460.0,0.00018852,2]
[376085714,1753858232407,-460.0,0.00018852,2]
[376085716,1753858232417,-367.38959,0.00018852,2]
[376085718,1753858232429,-48.94960372,0.00018852,2]
[376085720,1753858232439,-460.9871696,0.00018852,2]
[376085722,1753858232448,-460.0,0.00018852,2]
[376085724,1753858232457,-434.44667416,0.00018852,2]
[376085727,1753858232467,-460.0,0.00018852,2]
[376085730,1753858232476,-435.61655252,0.00018852,2]
[376086158,1753858239357,-101.65641955,0.00018852,2]
[376086159,1753858239368,-500.34671796,0.00018852,2]
[376086160,1753858239378,-460.0,0.00018852,2]
[376086161,1753858239389,-460.0,0.00018852,2]
[376086162,1753858239399,-460.0,0.00018852,2]
[376086163,1753858239413,-460.0,0.00018852,2]
[376086164,1753858239424,-460.0,0.00018852,2]
[376086165,1753858239434,-460.0,0.00018852,2]
[376086166,1753858239444,-460.0,0.00018852,2]
[376086167,1753858239453,-460.0,0.00018852,2]
[376086168,1753858239463,-500.21362089,0.00018852,2]
[376086169,1753858239474,-460.0,0.00018852,2]
[376086170,1753858239484,-460.0,0.00018852,2]
[376086171,1753858239493,-192.13474523,0.00018852,2]
[376086172,1753858239503,-460.20732163,0.00018852,2]
[376086173,1753858239513,-460.0,0.00018852,2]
[376086174,1753858239523,-460.0,0.00018852,2]
[376086175,1753858239533,-1198.62,0.00018852,2]
[376086176,1753858239544,-460.0,0.00018852,2]
[376086177,1753858239553,-460.0,0.00018852,2]
[376086178,1753858239563,-460.0,0.00018852,2]
[376086179,1753858239573,-460.0,0.00018852,2]
[376086180,1753858239584,-460.0,0.00018852,2]
[376086181,1753858239594,-460.0,0.00018852,2]
[376086182,1753858239603,-461.22878906,0.00018852,2]
[376086183,1753858239613,-460.0,0.00018852,2]
[376086184,1753858239623,-460.0,0.00018852,2]
[376086185,1753858239632,-460.0,0.00018852,2]
[376086186,1753858239642,-460.0,0.00018852,2]
[376086187,1753858239652,-460.0,0.00018852,2]
[376086188,1753858239662,-460.90378455,0.00018852,2]
[376086189,1753858239672,-460.0,0.00018852,2]
[376086190,1753858239681,-462.69044354,0.00018852,2]
[376086191,1753858239690,-460.0,0.00018852,2]
[376086192,1753858239700,-469.16714963,0.00018853,2]
[376086193,1753858239710,-460.0,0.00018853,2]
[376086194,1753858239721,-460.0,0.00018853,2]
[376086195,1753858239730,-460.0,0.00018853,2]
[376086196,1753858239741,-460.0,0.00018853,2]
[376086197,1753858239751,-460.0,0.00018853,2]
[376086198,1753858239761,-483.47083445,0.00018853,2]
[376086200,1753858239772,-465.31352507,0.00018853,2]
[376086202,1753858239781,-460.0,0.00018853,2]
[376086203,1753858239790,-460.0,0.00018853,2]
[376086204,1753858239800,-460.0,0.00018853,2]
[376086205,1753858239810,-461.58316653,0.00018853,2]
[376086206,1753858239820,-460.0,0.00018853,2]
[376086207,1753858239830,-461.74361109,0.00018853,2]
[376086208,1753858239840,-451.09328201,0.00018853,2]
[376086209,1753858239850,-462.32014531,0.00018853,2]
[376086210,1753858239859,-460.0,0.00018853,2]
[376086211,1753858239869,-467.04633324,0.00018853,2]
[376086212,1753858239879,-460.0,0.00018853,2]
[376086213,1753858239889,-460.0,0.00018853,2]
[376086214,1753858239899,-460.0,0.00018853,2]
[376086215,1753858239909,-460.0,0.00018853,2]
[376086216,1753858239919,-460.0,0.00018853,2]
[376086217,1753858239929,-460.0,0.00018853,2]
[376086218,1753858239939,-460.0,0.00018853,2]
[376086219,1753858239950,-460.0,0.00018853,2]
[376086220,1753858239960,-231.22660135,0.00018853,2]
[376086221,1753858239971,-460.0,0.00018853,2]
[376086222,1753858239981,-460.0,0.00018853,2]
[376086223,1753858239993,-460.0,0.00018853,2]
[376086224,1753858240002,-500.0,0.00018853,2]
[376086225,1753858240012,-500.0,0.00018853,2]
[376086226,1753858240022,-2659.48,0.00018853,2]
[376086227,1753858240031,-494.75,0.00018853,2]
[376086228,1753858240041,-460.0,0.00018853,2]
[376086229,1753858240050,-460.0,0.00018853,2]
[376086230,1753858240060,-460.0,0.00018853,2]
[376086231,1753858240069,-460.0,0.00018853,2]
[376086232,1753858240078,-460.0,0.00018853,2]
[376086233,1753858240087,-460.0,0.00018853,2]
[376086235,1753858240097,-460.0,0.00018853,2]
[376086236,1753858240107,-460.0,0.00018853,2]
[376086237,1753858240117,-460.0,0.00018853,2]
[376086238,1753858240128,-460.0,0.00018853,2]
[376086239,1753858240138,-460.0,0.00018853,2]
[376086240,1753858240148,-1532.21,0.00018853,2]
[376086241,1753858240159,-1532.21,0.00018853,2]
[376086242,1753858240170,-460.0,0.00018853,2]
[376086243,1753858240180,-460.0,0.00018853,2]
[376086244,1753858240190,-460.0,0.00018853,2]
[376086246,1753858240200,-460.0,0.00018853,2]
[376086248,1753858240209,-76.26552473,0.00018853,2]
[376086251,1753858240227,-383.73447527,0.00018853,2]
[376086253,1753858240236,-460.0,0.00018853,2]
[376086255,1753858240246,-460.0,0.00018853,2]
[376086257,1753858240255,-460.0,0.00018853,2]
[376086259,1753858240265,-460.0,0.00018853,2]
[376086261,1753858240274,-460.0,0.00018853,2]
[376086263,1753858240284,-460.0,0.00018853,2]
[376086265,1753858240293,-460.0,0.00018853,2]
[376086267,1753858240303,-460.0,0.00018853,2]
[376086269,1753858240312,-618.29,0.00018853,2]
[376086271,1753858240321,-460.0,0.00018853,2]
[376086273,1753858240331,-460.0,0.00018853,2]
[376086275,1753858240340,-460.0,0.00018853,2]
[376086277,1753858240350,-460.0,0.00018853,2]
[376086280,1753858240360,-1966.7,0.00018853,2]
[376086282,1753858240370,-460.0,0.00018853,2]
[376086284,1753858240379,-460.0,0.00018853,2]
[376086286,1753858240391,-460.0,0.00018853,2]
[376086288,1753858240400,-460.0,0.00018853,2]
[376086290,1753858240410,-460.0,0.00018853,2]
[376086292,1753858240419,-460.0,0.00018853,2]
[376086294,1753858240428,-460.0,0.00018853,2]
[376086296,1753858240438,-460.0,0.00018853,2]
[376086298,1753858240447,-460.0,0.00018853,2]
[376086300,1753858240457,-460.0,0.00018853,2]
[376086302,1753858240467,-893.26,0.00018853,2]
[376086304,1753858240477,-460.0,0.00018853,2]
[376086306,1753858240487,-460.0,0.00018853,2]
[376086308,1753858240496,-460.0,0.00018853,2]
[376086310,1753858240506,-460.0,0.00018853,2]
[376086312,1753858240516,-460.0,0.00018853,2]
[376086314,1753858240525,-460.0,0.00018853,2]
[376086316,1753858240535,-274.71771532,0.00018853,2]
[376086318,1753858240545,-463.54403321,0.00018853,2]
[376086320,1753858240554,-460.0,0.00018853,2]
[376086322,1753858240564,-460.0,0.00018853,2]
[376086324,1753858240575,-460.0,0.00018853,2]
[376086326,1753858240585,-500.65748196,0.00018853,2]
[376086329,1753858240596,-460.0,0.00018853,2]
[376086330,1753858240606,-460.0,0.00018853,2]
[376086332,1753858240619,-564.47,0.00018853,2]
[376086335,1753858240628,-460.0,0.00018853,2]
[376086336,1753858240638,-460.0,0.00018853,2]
[376086339,1753858240647,-460.0,0.00018853,2]
[376086341,1753858240656,-460.0,0.00018853,2]
[376086343,1753858240666,-460.0,0.00018853,2]
[376086345,1753858240676,-460.0,0.00018853,2]
[376086347,1753858240685,-460.0,0.00018853,2]
[376086349,1753858240694,-460.0,0.00018853,2]
[376086351,1753858240704,-263.19976411,0.00018854,2]
[376086353,1753858240714,-465.83268893,0.00018854,2]